Cogmind - Beta 10 @@@ ROGUE MODE // 2020.09.10 @ 02:58:55 // Winter2019/RPGLIKE Player: Torako Result: Destroyed by DAS Turret with DAS Cannon Performance ------------- Evolutions (0) 0 Regions Visited (3) 600 Robots Destroyed (42) 210 Value Destroyed (831) 831 Prototype IDs (4) 80 Alien Tech Used (0) 0 Bonus (-38) -38 TOTAL SCORE: 1683 Bonus ------- Friendly Fire -38 Cogmind --------- Core Integrity 0/600 Matter 300/300 Energy 273/275 System Corruption 0% Temperature Cool (3) Movement Hovering (66) Location -10/Exiles Parts ------- > --- POWER (2) -------- Ion Engine Light Ion Engine > --- PROPULSION (2) --- Airjet Combat Airjet > --- UTILITY (3) ------ Targeting Computer Advanced Targeting Computer Improved Trap Extractor > --- WEAPON (3) ------- Medium Laser > --- INVENTORY (1) ---- (None) Peak State ------------ > --- POWER ------------ Ion Engine Light Ion Engine > --- PROPULSION ------- Airjet Combat Airjet > --- UTILITY ---------- Experimental Sensor Array Targeting Computer Light Armor Plating > --- WEAPON ----------- Medium Laser Medium Laser Medium Laser > --- INVENTORY -------- Improved Trap Extractor [Rating: 21] Favorites ----------- Power Light Ion Engine Engine Light Ion Engine Propulsion Light Treads Treads Light Treads Hover Unit Combat Airjet Utility Targeting Computer Device Improved Trap Extractor Processor Targeting Computer Protection Light Armor Plating Weapon Medium Laser Energy Gun Medium Laser Special Melee Weapon Datajack Build | -11 -10 -10 -10 ------- Run | Scr Mat Min Exi Slots Evolved 6 | 2 2 2 . Power 1 | . 1 . . Propulsion 1 | . . 1 . Utility 2 | 1 . 1 . Weapon 2 | 1 1 . . Parts Attached 27 | 4 15 8 . Power 7 | 1 6 . . Engine 7 | 1 6 . . Core . | . . . . Reactor . | . . . . Propulsion 5 | 1 2 2 . Treads 3 | 1 2 . . Leg . | . . . . Wheel . | . . . . Hover 2 | . . 2 . Flight . | . . . . Utility 7 | . 3 4 . Device 2 | . . 2 . Storage . | . . . . Processor 2 | . 1 1 . Hackware . | . . . . Protection 3 | . 2 1 . Artifact . | . . . . Weapon 8 | 2 4 2 . Energy Gun 7 | 2 4 1 . Energy Cannon . | . . . . Ballistic Gun . | . . . . Ballistic Cannon . | . . . . Launcher . | . . . . Special Weapon . | . . . . Impact Weapon . | . . . . Slashing Weapon . | . . . . Piercing Weapon . | . . . . Special Melee Weapon 1 | . . 1 . Unidentified Prototypes 1 | . . 1 . Parts Lost 3 | . 1 . 2 Power . | . . . . Propulsion . | . . . . Utility . | . . . . Weapon 3 | . 1 . 2 Highest Loss Streak 2 | . 1 . 2 Average Slot Usage (%) 96 | . 93 100 100 Engine 21 | . 20 22 20 Treads 10 | . 13 6 . Hover 4 | . . 8 20 Device 2 | . . 6 10 Processor 13 | . 11 13 20 Protection 9 | . 11 8 . Energy Gun 33 | . 34 32 30 Naked Turns . | . . . . Heaviest Build 18 | 7 17 18 17 Greatest Support 31 | 20 20 31 31 Greatest Overweight (x) 1 | 1 . . . Average Overweight (x) . | . . . . Largest Inventory Capacity 1 | . 1 1 1 Average Capacity . | . . 1 1 Most Carried 1 | . 1 1 1 Average Carried . | . . . . Final Capacity 1 | . 1 1 1 Final Carried 1 | . 1 1 . Class Distribution -------------------- 67% | Hacker-Gunner 32% | Hacker-Mutant Dominant Class ---------------- Hacker-Gunner | -10/Materials Hacker-Gunner | -10/Mines Hacker-Gunner | -10/Exiles Resources | -11 -10 -10 -10 ----------- Run | Scr Mat Min Exi Matter Collected 460 | 174 206 80 . Remotely . | . . . . Salvage Created 999 | . 831 98 70 Parts 65 | . 52 13 . Haulers Intercepted 2 | . 2 . . Recyclers Shooed . | . . . . Parts Field Recycled . | . . . . Retrieved Matter . | . . . . Parts Self-Destructed . | . . . . Prevented . | . . . . Kills | -11 -10 -10 -10 ------- Run | Scr Mat Min Exi Combat Hostiles Destroyed 35 | . 23 6 6 Guns 34 | . 22 6 6 Classes Destroyed 8 | . 6 1 1 Tunneler 1 | . 1 . . Hauler 2 | . 2 . . Operator 1 | . 1 . . Watcher 3 | . 3 . . Swarmer 12 | . 9 3 . Grunt 16 | . 14 2 . Demolisher 1 | . . 1 . Assembled 6 | . . . 6 Best Kill Streak 6 | . 5 3 6 Combat Bots Only 6 | . 4 3 6 Max Kills in Single Turn 2 | . 2 1 1 Gunslinging 1 | . 1 . . Exploded . | . . . . Melee . | . . . . Uniques/NPCs Destroyed . | . . . . Combat | -11 -10 -10 -10 -------- Run | Scr Mat Min Exi Damage Taken 2035 | . 1084 227 724 Core 1570 | . 819 169 582 Absorbed by Shields . | . . . . Redirected to Core 1258 | . 602 148 508 Core Remaining (%) 100 | 100 . . . Volleys Fired 95 | 4 71 10 10 Largest 3 | 2 3 3 3 Hottest 150 | 100 150 150 150 Shots Fired 241 | 8 173 30 30 Gun 241 | 8 173 30 30 Cannon . | . . . . Launcher . | . . . . Special . | . . . . Kinetic . | . . . . Thermal 241 | 8 173 30 30 Explosive . | . . . . Electromagnetic . | . . . . Robot Hit Streak 13 | 3 12 13 5 Robot Miss Streak 3 | 1 3 3 2 Penetration Max . | . . . . Secondary Targets 6 | . 4 . 2 Max Gunslinging Chain 1 | . 1 . 1 Shots Hit Robots 158 | 6 115 17 20 Core Hits 72 | 1 48 11 12 Critical Hits . | . . . . Critical Kills . | . . . . Critical Parts Destroyed . | . . . . Melee Attacks . | . . . . Impact . | . . . . Slashing . | . . . . Piercing . | . . . . Sneak Attacks . | . . . . Combat Hostiles . | . . . . Follow-up Attacks . | . . . . Damage Inflicted 2029 | 77 1469 258 225 Guns 2005 | 77 1456 247 225 Cannons . | . . . . Explosions . | . . . . Melee . | . . . . Ramming 24 | . 13 11 . Kinetic . | . . . . Thermal 2005 | 77 1456 247 225 Explosive . | . . . . Electromagnetic . | . . . . Impact . | . . . . Slashing . | . . . . Piercing . | . . . . Highest Corruption . | . . . . Average Corruption . | . . . . Corruption Purged . | . . . . Overload Shots . | . . . . Overflow Damage . | . . . . Projectiles . | . . . . Explosions . | . . . . Melee . | . . . . Knockbacks . | . . . . Impact . | . . . . Kinetic . | . . . . Secondary . | . . . . Self-Inflicted Damage . | . . . . Shots . | . . . . Rammed 3 | . 2 1 . Targets Rammed 3 | . 2 1 . Kicked . | . . . . Crushed . | . . . . Highest Temperature 264 | . 240 72 264 Average Temperature 72 | . 69 31 115 Received Heat Transfer 707 | . 408 39 260 Siege Activations . | . . . . Robots Corrupted . | . . . . Combat Hostiles . | . . . . Parts Fried . | . . . . Impact Corruptions . | . . . . Robots Melted 1 | . 1 . . Combat Hostiles 1 | . 1 . . Parts Melted 10 | . 9 1 . Heat Transferred 5748 | 222 4157 703 666 Parts Sabotaged . | . . . . Parts Stolen . | . . . . Parts Stripped . | . . . . Power Chain Reactions . | . . . . Missiles Intercepted . | . . . . Alert | -11 -10 -10 -10 ------- Run | Scr Mat Min Exi Peak Influence 369 | . 369 185 . Initial 115 | . . 115 . Average 193 | . 248 111 . Maximum Alert Level 1 | . 1 . . Low Security (%) 51 | 100 21 100 . Level 1 48 | . 78 . . Level 2 . | . . . . Level 3 . | . . . . Level 4 . | . . . . Level 5 . | . . . . High Security . | . . . . Max Security . | . . . . Squads Dispatched 5 | . 5 . . Investigation 2 | . 2 . . Extermination . | . . . . Reinforcement 3 | . 3 . . Assault . | . . . . Garrison . | . . . . Intercept . | . . . . Construction Impeded . | . . . . Haulers Reinforced . | . . . . Stealth | -11 -10 -10 -10 --------- Run | Scr Mat Min Exi Distress Signals 2 | . 2 . . Communications Jammed . | . . . . Distress Signals . | . . . . Times Spotted 48 | . 33 6 9 Peak Tracking Total 12 | . 4 3 12 Tactical Retreats 4 | . 1 . 3 Traps | -11 -10 -10 -10 ------- Run | Scr Mat Min Exi Traps Triggered 3 | . 3 . . Indirectly . | . . . . Trap Hack Attempts 19 | . . 19 . Triggered . | . . . . Disarmed . | . . . . Reprogrammed 2 | . . 2 . Reused 1 | . . . 1 Traps Extracted 3 | . . 2 1 Installed 2 | . . . 2 Triggered . | . . . . Machines | -11 -10 -10 -10 ---------- Run | Scr Mat Min Exi Machines Disabled 1 | . . 1 . Max in Single Turn 1 | . . 1 . Machines Sabotaged . | . . . . Garrisons Compromised . | . . . . Overloaded Fab Kills . | . . . . Fab Network Shutdowns . | . . . . Hacking | -11 -10 -10 -10 --------- Run | Scr Mat Min Exi Machines Accessed 7 | . 6 1 . Terminals 4 | . 4 . . Fabricators . | . . . . Repair Stations . | . . . . Recycling Units 2 | . 2 . . Scanalyzers . | . . . . Garrison Access . | . . . . Total Hacks 19 | . 18 1 . Successful 14 | . 13 1 . Failed 5 | . 5 . . Catastrophic . | . . . . Database Lockouts . | . . . . Manual 10 | . 10 . . Terminals 10 | . 10 . . Fabricators . | . . . . Repair Stations . | . . . . Recycling Units 8 | . 8 . . Scanalyzers . | . . . . Garrison Access . | . . . . Terminal Hacks 7 | . 6 1 . Robot Analysis 2 | . 2 . . Prototype ID Bank 2 | . 2 . . Open Door 1 | . . 1 . Dispatch Records 1 | . 1 . . Hauler Manifests 1 | . 1 . . Fabricator Hacks . | . . . . Repair Station Hacks . | . . . . Recycling Unit Hacks 4 | . 4 . . Report Inventory 2 | . 2 . . Retrieve Components 2 | . 2 . . Scanalyzer . | . . . . Garrison Access Hacks . | . . . . Unauthorized Hacks 3 | . 3 . . Terminals 1 | . 1 . . Botnet 1 | . 1 . . Fabricators . | . . . . Repair Stations . | . . . . Recycling Units 2 | . 2 . . Tunnel 2 | . 2 . . Scanalyzers . | . . . . Garrison Access . | . . . . Data Cores Recovered . | . . . . Used . | . . . . Hacking Detections 2 | . 2 . . Full Trace Events . | . . . . Feedback Events . | . . . . Feedback Blocked . | . . . . Robot Schematics Acquired . | . . . . Robots Built . | . . . . Matter . | . . . . Time . | . . . . Total Robot Build Rating . | . . . . Part Schematics Acquired . | . . . . Parts Built . | . . . . Matter . | . . . . Time . | . . . . Total Part Build Rating . | . . . . Parts Repaired . | . . . . Time . | . . . . Parts Recycled . | . . . . Recycled Matter . | . . . . Retrieved Matter . | . . . . Retrieved Components 13 | . 13 . . Parts Scanalyzed . | . . . . Part Schematics Acquired . | . . . . Parts Damaged . | . . . . Bothacking | -11 -10 -10 -10 ------------ Run | Scr Mat Min Exi Used RIF Installer . | . . . . Robots Hacked . | . . . . Non-combat . | . . . . Combat . | . . . . Robot Hacks Applied . | . . . . Relay Couplers Released . | . . . . Robots Rewired . | . . . . Allies Hacked . | . . . . Hacks Repelled . | . . . . Allies | -11 -10 -10 -10 -------- Run | Scr Mat Min Exi Total Allies . | . . . . Largest Group . | . . . . Highest-Rated Group . | . . . . Highest-Rated Ally . | . . . . Total Orders . | . . . . Ally Attacks . | . . . . Total Damage . | . . . . Kills . | . . . . Allies Corrupted . | . . . . Allies Melted . | . . . . Intel | -11 -10 -10 -10 ------- Run | Scr Mat Min Exi Robot Analysis Total 2 | . 2 . . Derelict Logs Recovered 1 | . . 1 . Drone Launches . | . . . . Drone Recoveries . | . . . . Exploration | -11 -10 -10 -10 ------------- Run | Scr Mat Min Exi Turns Passed 2326 | 68 1338 736 184 Spaces Moved 1520 | 48 653 594 225 Core 25 | 25 . . . Treads 915 | 23 653 239 . Legs . | . . . . Wheels . | . . . . Hover 580 | . . 355 225 Flight . | . . . . Fastest Speed 50 | 50 160 66 66 Average Speed 122 | 105 160 104 66 Slowest Speed 160 | 160 160 160 66 Overloaded Moves . | . . . . Propulsion Burnouts . | . . . . Robots Hopped . | . . . . Cave-ins Triggered . | . . . . Exploration Rate (%) 63 | 4 95 97 57 Regions Visited 3 Branch Regions 2 Pre-discovered Areas 4 | . 2 2 . Known Exits Taken . | . . . . Unknown Exits Taken 3 | 1 1 1 . Scrap Searched 3 | . . 3 . Spaces Dug . | . . . . Terrain Destroyed . | . . . . Melee . | . . . . Projectile . | . . . . AOE . | . . . . Terrain Rammed . | . . . . Walls Destroyed . | . . . . Machines Disabled . | . . . . Actions | -11 -10 -10 -10 --------- Run | Scr Mat Min Exi Total 1773 | 55 796 683 239 Wait 45 | . 11 34 . Move 1517 | 47 652 593 225 Hop . | . . . . Pick Up 3 | . 1 2 . Fast Attach 17 | 4 7 6 . Attach 1 | . . 1 . Detach 1 | . . 1 . Swap 9 | . 8 1 . Drop 16 | . 8 6 2 Fire 95 | 4 71 10 10 Melee . | . . . . Ram . | . . . . Kick . | . . . . Crush 3 | . 2 1 . Escape Stasis . | . . . . Rewire . | . . . . Trap 21 | . . 19 2 Miscellaneous 45 | . 36 9 . Route ------- -11/Scrapyard -10/Materials (discovered 4 exits: [*Mat x3] / *Min) -10/Mines (discovered 3 exits: [*Mat x2] / [*Exi]) -10/Exiles History --------- Turn | Location | Event 1 | -11/Scrapyard | Upgraded with Utility slot (x1) 1 | -11/Scrapyard | Upgraded with Weapon slot (x1) 6 | -11/Scrapyard | Discovered new exit (range 15) 69 | -11/Scrapyard | Entered Materials 311 | -10/Materials | Build established: Hacker-Mutant 344 | -10/Materials | Discovered new exit (range 4) 349 | -10/Materials | Discovered new exit (range 16) 436 | -10/Materials | Reached level 2 524 | -10/Materials | Upgraded with Weapon slot (x1) 656 | -10/Materials | Upgraded with Power slot (x1) 761 | -10/Materials | Discovered new exit (range 16) 790 | -10/Materials | Core integrity fell below 50% 1281 | -10/Materials | Build established: Hacker-Gunner 1290 | -10/Materials | Discovered new exit (range 16) 1308 | -10/Materials | Reached level 3 1407 | -10/Materials | Entered Mines 1442 | -10/Mines | Assembled infested the area 1508 | -10/Mines | Discovered new exit (range 11) 1667 | -10/Mines | Found a damaged Exp. Sensor Array with a note attached 1671 | -10/Mines | Found Prototype Device 1671 | -10/Mines | Identified Exp. Sensor Array 1674 | -10/Mines | Upgraded with Utility slot (x1) 1693 | -10/Mines | Deemed a non-threat by the Exiles lab entrance 1695 | -10/Mines | Discovered new exit (range 5) 1855 | -10/Mines | Met a Derelict who couldn't figure out how to use a Trap Extractor 1864 | -10/Mines | Upgraded with Propulsion slot (x1) 1942 | -10/Mines | Learned location of Storage (-9) 2046 | -10/Mines | Discovered new exit (range 5) 2143 | -10/Mines | Entered Exiles 2145 | -10/Exiles | Reached level 4 2159 | -10/Exiles | Met 8R-AWN 2169 | -10/Exiles | Met EX-HEX 2190 | -10/Exiles | Met EX-BIN 2237 | -10/Exiles | Met EX-DEC 2257 | -10/Exiles | Attacked by the Exiles 2324 | -10/Exiles | Core integrity fell below 20% 2327 | -10/Exiles | Destroyed by DAS Turret with DAS Cannon Last Messages --------------- as-38276 destroyed. Switching to secondary target: as-58804. as-58804 destroyed. as-36914 destroyed. as-80405 destroyed. Penetrated by HV Slug. HV Slug penetrates Earth. Penetrated by HV Slug. HV Slug penetrates Earth. Penetrated by HV Slug. HV Slug penetrates Machine. Machine disabled. Penetrated by HV Slug. HV Slug penetrates Wall. Penetrated by HV Slug. HV Slug penetrates Machine. Machine disabled. Med. Laser destroyed. Knocked back. Med. Laser destroyed. Map ----- +----------------------------------------------------+ | ??????????????????????????????"""" ## #?????? | | ?????????????????????????????#""X" #?????? | | ?????????????????????????????#" #?????? | | ?????????????????????????????#" ## #?????? | | ?????????????????????????????#""""""?# #?????? | | ??????????????????????????????#"###??# #?????? | | ?????????????????????????????????????# #???""" | | ?????????????????????????????????????# #??"""" | | ????????????????????????????????????## ###"" " | | ????????????????????????????????????#" " | | ????????????????????????????????????#" | | ????????????????????????????????????#" | | ????????????????????????????????????#" | | ???????????????????????####?????????#" | | ??????????????????????? ""?????????#" | | ???????????????????????" ""?????????## | | ??????????????????????"" ??????????# | | ?????????????????????#"" ??????????#" "X" | | ?????????????????????#"" ??????????#" """ | | ?????????????????????? "??????????#" """""" | | ???????????????????????" "?????????##" ####### | | ???????????????????????# #????????##"" #?????? | | ?????????????????????### ###?######"" #?????? | | ?????????? """#####X# #"###""""""" ##????? | | ?????????? """""" " "" ##???# | | ?????????? @ """ " ##### | | ?????????? " " | | ??????????# | | ???????????## | | ????????????## | | ?????????????## | | ??????????????##" | | ???????????????#""" """""" | | ???????????????#" ######""" | | ???????????????"" ""##????#####""" | | ??????????????#""" """##?????????##""" | | ??????????????""" """##???????????#"""" | | ??????????????""" ""#???????????##"" | | ??????????????"" ########?#####"""" | | ??????????????""" ## ###"""" | | ??????????????"" "" " | | ??????????????#"" | | ???????????????"""" | | ???????????????# | | ???????????????#" " " | | ???????????????#"""" ""## ##""" " " | | ???????????????#"" ""#### ######""" | | ????????????????? """"##??# %####?###" | | ????????????????""" """#??##%%%# #???## | | ????????????????? ""##??#! !#????? | +----------------------------------------------------+ Best States ------------- Heat Dissipation 55 Energy Generation 15 Energy Capacity 275 Matter Stores 300 Matter Capacity 300 Sight Range 16 Robot Scan Range 30 Terrain Scan Density 10 Armor Coverage 150 Evasion (%) 51 Targeting Accuracy 13 Recoil Reduction 1 Offensive Hacking 10 Defensive Hacking 10 Item Schematics ----------------- None Robot Schematics ------------------ None Fabricated ------------ Nothing Alien Tech Used ----------------- None Achievements -------------- None Challenges ------------ None RPGLIKE | -11 -10 -10 -10 --------- Run | Scr Mat Min Exi Levels Raised 3 | . 2 . 1 XP Earned 7675 | 3000 3275 1200 200 XP Spent 5600 | 2750 1550 1300 . Upgrades 16 | 11 3 2 . Power Slot 1 | . 1 . . Propulsion Slot 1 | . . 1 . Utility Slot 2 | 1 . 1 . Weapon Slot 2 | 1 1 . . Heat Dissipation 5 | 5 . . . Inventory Capacity 1 | . 1 . . Hack Attack % 2 | 2 . . . Hack Defense % 2 | 2 . . . Protomatter Created 361 | . 270 65 26 Integrity Restored 982 | . 787 195 . Core 939 | . 744 195 . Parts 43 | . 43 . . Protomatter Decayed 26 | . 6 12 8 Game ------ Seed SensorBladeNanoactuators Manual? 0 Play Time 00:15:40 Cumulative 215.9 hours Start 2020.09.10 @ 02:44:45 End 2020.09.10 @ 02:58:55 Sessions 1 Manual Loads 0 Difficulty Rogue Special Mode Winter2019/RPGLIKE Game No. 235 Rogue 235 Adventurer 0 Explorer 0 Win Type - Total 10 Types 8/0/2/0/0/0/0/0/0 Lore% 74 Gallery% 85 Achievement% 64 Wizard Run 0 Options --------- ASCII 0 Keyboard 1 Movement Numpad Keybinds 0 Fullscreen 1 Font 18/SmallcapsGlow Map View 76x50 Tactical HUD 1 Map Filters NONE Filters NONE Steam 1 RUN: 7f7d3b58-b98b-4915-bc21-a33f6cbc41aa